[Event "Titled Tuesday Blitz October 31 Early 2023"]
[White "HeroRubiksCube"]
[Black "Sjugirov, Sanan"]
[BlackFideId "4189302"]
[WhiteElo "2500"]
[BlackElo "2958"]
[Result "1/2-1/2"]
[Round "1"]
[TimeControl "180+1"]
[Date "2023.10.31"]
[WhiteClock "0:00:18"]
[BlackClock "0:00:10"]
[Board "22"]

1. e4 {[%clk 0:02:52]}  c6 {[%clk 0:02:59]} 2. d4 {[%clk 0:02:51]}  d5 {[%clk 0:03:00]} 3. Nc3 {[%clk 0:02:51]}  dxe4 {[%clk 0:03:00]} 4. Nxe4 {[%clk 0:02:49]}  Nf6 {[%clk 0:03:01]} 5. Nxf6+ {[%clk 0:02:48]}  exf6 {[%clk 0:03:02]} 6. c3 {[%clk 0:02:48]}  Bd6 {[%clk 0:03:02]} 7. Bd3 {[%clk 0:02:48]}  O-O {[%clk 0:03:03]} 8. Ne2 {[%clk 0:02:48]}  Re8 {[%clk 0:03:01]} 9. O-O {[%clk 0:02:48]}  Nd7 {[%clk 0:02:58]} 10. Bf4 {[%clk 0:02:48]}  Nf8 {[%clk 0:02:58]} 11. Bxd6 {[%clk 0:02:48]}  Qxd6 {[%clk 0:02:59]} 12. Qd2 {[%clk 0:02:46]}  Be6 {[%clk 0:02:44]} 13. Rfe1 {[%clk 0:02:44]}  Rad8 {[%clk 0:02:43]} 14. Qc2 {[%clk 0:02:41]}  Qc7 {[%clk 0:02:34]} 15. b3 {[%clk 0:02:39]}  c5 {[%clk 0:02:27]} 16. Rad1 {[%clk 0:02:29]}  Bg4 {[%clk 0:02:22]} 17. f3 {[%clk 0:02:24]}  Bc8 {[%clk 0:02:20]} 18. Bc4 {[%clk 0:02:11]}  a6 {[%clk 0:02:11]} 19. a4 {[%clk 0:02:08]}  Ng6 {[%clk 0:02:03]} 20. Ng3 {[%clk 0:01:55]}  Rxe1+ {[%clk 0:01:59]} 21. Rxe1 {[%clk 0:01:55]}  cxd4 {[%clk 0:02:00]} 22. cxd4 {[%clk 0:01:54]}  Qb6 {[%clk 0:01:34]} 23. Qe4 {[%clk 0:01:38]}  Bd7 {[%clk 0:01:19]} 24. Qd3 {[%clk 0:01:23]}  Ne5 {[%clk 0:01:10]} 25. Qc3 {[%clk 0:01:13]}  Bc6 {[%clk 0:00:51]} 26. Rd1 {[%clk 0:01:07]}  Nxc4 {[%clk 0:00:38]} 27. bxc4 {[%clk 0:01:07]}  Bxa4 {[%clk 0:00:38]} 28. Rd2 {[%clk 0:01:03]}  Qb3 {[%clk 0:00:35]} 29. Ne4 {[%clk 0:00:54]}  f5 {[%clk 0:00:29]} 30. Qxb3 {[%clk 0:00:51]}  Bxb3 {[%clk 0:00:30]} 31. Nc5 {[%clk 0:00:48]}  Bxc4 {[%clk 0:00:30]} 32. Nxb7 {[%clk 0:00:48]}  Rb8 {[%clk 0:00:24]} 33. Nd6 {[%clk 0:00:37]}  Be6 {[%clk 0:00:21]} 34. d5 {[%clk 0:00:32]}  Bd7 {[%clk 0:00:20]} 35. g3 {[%clk 0:00:27]}  a5 {[%clk 0:00:19]} 36. Nc4 {[%clk 0:00:26]}  a4 {[%clk 0:00:19]} 37. Ne5 {[%clk 0:00:24]}  Be8 {[%clk 0:00:05]} 38. d6 {[%clk 0:00:24]}  f6 {[%clk 0:00:06]} 39. d7 {[%clk 0:00:23]}  fxe5 {[%clk 0:00:06]} 40. d8=Q {[%clk 0:00:24]}  Rxd8 {[%clk 0:00:05]} 41. Rxd8 {[%clk 0:00:24]}  Kf7 {[%clk 0:00:06]} 42. Ra8 {[%clk 0:00:24]}  Ke7 {[%clk 0:00:06]} 43. Kf2 {[%clk 0:00:25]}  g5 {[%clk 0:00:05]} 44. Ke3 {[%clk 0:00:24]}  f4+ {[%clk 0:00:05]} 45. gxf4 {[%clk 0:00:24]}  exf4+ {[%clk 0:00:05]} 46. Kd4 {[%clk 0:00:22]}  Bc6 {[%clk 0:00:04]} 47. Ra7+ {[%clk 0:00:17]}  Kd6 {[%clk 0:00:03]} 48. Ra6 {[%clk 0:00:17]}  h5 {[%clk 0:00:02]} 49. Kd3 {[%clk 0:00:17]}  Kc5 {[%clk 0:00:02]} 50. Ra5+ {[%clk 0:00:16]}  Bb5+ {[%clk 0:00:03]} 51. Kc3 {[%clk 0:00:16]}  g4 {[%clk 0:00:02]} 52. fxg4 {[%clk 0:00:14]}  f3 {[%clk 0:00:03]} 53. Ra8 {[%clk 0:00:14]}  f2 {[%clk 0:00:04]} 54. Rc8+ {[%clk 0:00:14]}  Kb6 {[%clk 0:00:03]} 55. Rb8+ {[%clk 0:00:14]}  Kc5 {[%clk 0:00:02]} 56. Rf8 {[%clk 0:00:14]}  f1=Q {[%clk 0:00:02]} 57. Rxf1 {[%clk 0:00:14]}  Bxf1 {[%clk 0:00:03]} 58. gxh5 {[%clk 0:00:15]}  Bc4 {[%clk 0:00:03]} 59. Kb2 {[%clk 0:00:15]}  Bg8 {[%clk 0:00:03]} 60. Ka1 {[%clk 0:00:16]}  Kb5 {[%clk 0:00:04]} 61. Kb2 {[%clk 0:00:17]}  Kb4 {[%clk 0:00:05]} 62. Ka1 {[%clk 0:00:18]}  a3 {[%clk 0:00:05]} 63. Kb1 {[%clk 0:00:18]}  Kb3 {[%clk 0:00:06]} 64. Ka1 {[%clk 0:00:19]}  a2 {[%clk 0:00:07]} 65. h6 {[%clk 0:00:19]}  Bh7 {[%clk 0:00:08]} 66. h4 {[%clk 0:00:18]}  Ka3 {[%clk 0:00:09]} 67. h5 {[%clk 0:00:18]}  Kb3 {[%clk 0:00:10]} 1/2-1/2


[Site "https://www.chess.com"]

[Event "Titled Tuesday Blitz October 31 Early 2023"]
[White "Daneshvar, Bardiya"]
[Black "Kalogeris, Ioannis"]
[WhiteFideId "12576468"]
[BlackFideId "4239563"]
[WhiteElo "2956"]
[BlackElo "2497"]
[Result "1-0"]
[Round "1"]
[TimeControl "180+1"]
[Date "2023.10.31"]
[WhiteClock "0:02:10"]
[BlackClock "0:00:00"]
[Board "23"]

1. Nf3 {[%clk 0:02:48]}  d6 {[%clk 0:00:10]} 2. e4 {[%clk 0:02:45]}  Nf6 {[%clk 0:00:11]} 3. Nc3 {[%clk 0:02:46]}  e5 {[%clk 0:00:11]} 4. d4 {[%clk 0:02:47]}  Nc6 {[%clk 0:00:11]} 5. Bb5 {[%clk 0:02:46]}  Bd7 {[%clk 0:00:10]} 6. d5 {[%clk 0:02:45]}  Ne7 {[%clk 0:00:10]} 7. Bxd7+ {[%clk 0:02:46]}  Qxd7 {[%clk 0:00:10]} 8. O-O {[%clk 0:02:46]}  g6 {[%clk 0:00:10]} 9. a4 {[%clk 0:02:46]}  Bg7 {[%clk 0:00:11]} 10. a5 {[%clk 0:02:47]}  a6 {[%clk 0:00:09]} 11. Nd2 {[%clk 0:02:48]}  O-O {[%clk 0:00:07]} 12. Nc4 {[%clk 0:02:48]}  Nh5 {[%clk 0:00:07]} 13. Qd3 {[%clk 0:02:47]}  f5 {[%clk 0:00:07]} 14. f3 {[%clk 0:02:47]}  f4 {[%clk 0:00:05]} 15. b4 {[%clk 0:02:45]}  g5 {[%clk 0:00:06]} 16. Qe2 {[%clk 0:02:43]}  Ng6 {[%clk 0:00:05]} 17. Bd2 {[%clk 0:02:43]}  Nh4 {[%clk 0:00:06]} 18. Be1 {[%clk 0:02:43]}  Kh8 {[%clk 0:00:06]} 19. Bxh4 {[%clk 0:02:42]}  gxh4 {[%clk 0:00:06]} 20. Rfb1 {[%clk 0:02:43]}  Bf6 {[%clk 0:00:06]} 21. h3 {[%clk 0:02:41]}  Rg8 {[%clk 0:00:06]} 22. Kh2 {[%clk 0:02:39]}  Rg3 {[%clk 0:00:04]} 23. Qf2 {[%clk 0:02:38]}  Rag8 {[%clk 0:00:05]} 24. Rg1 {[%clk 0:02:37]}  Rxg2+ {[%clk 0:00:04]} 25. Rxg2 {[%clk 0:02:32]}  Rg3 {[%clk 0:00:04]} 26. Rh1 {[%clk 0:02:31]}  Qxh3+ {[%clk 0:00:03]} 27. Kg1 {[%clk 0:02:31]}  Qd7 {[%clk 0:00:04]} 28. Rxg3 {[%clk 0:02:29]}  fxg3 {[%clk 0:00:04]} 29. Qa7 {[%clk 0:02:25]}  h3 {[%clk 0:00:04]} 30. Ne2 {[%clk 0:02:15]}  h2+ {[%clk 0:00:04]} 31. Kg2 {[%clk 0:02:14]}  Bg5 {[%clk 0:00:00]} 32. Qxb7 {[%clk 0:02:10]} 1-0


[Site "https://www.chess.com"]

[Event "Titled Tuesday Blitz October 31 Early 2023"]
[White "Mikaelyan, Arman"]
[Black "Iljin, Timofey"]
[WhiteFideId "13304852"]
[BlackFideId "14110180"]
[WhiteElo "2921"]
[BlackElo "2489"]
[Result "0-1"]
[Round "1"]
[TimeControl "180+1"]
[Date "2023.10.31"]
[WhiteClock "0:00:05"]
[BlackClock "0:00:16"]
[Board "25"]

1. d4 {[%clk 0:03:00]}  d5 {[%clk 0:02:59]} 2. c4 {[%clk 0:02:59]}  e6 {[%clk 0:03:00]} 3. Nf3 {[%clk 0:02:59]}  Nf6 {[%clk 0:03:00]} 4. g3 {[%clk 0:03:00]}  Bb4+ {[%clk 0:02:56]} 5. Bd2 {[%clk 0:02:59]}  Bd6 {[%clk 0:02:57]} 6. Nc3 {[%clk 0:02:56]}  O-O {[%clk 0:02:56]} 7. Bg2 {[%clk 0:02:55]}  b6 {[%clk 0:02:55]} 8. O-O {[%clk 0:02:53]}  Bb7 {[%clk 0:02:54]} 9. Ne5 {[%clk 0:02:50]}  c6 {[%clk 0:02:44]} 10. e4 {[%clk 0:02:46]}  dxe4 {[%clk 0:02:36]} 11. Nxe4 {[%clk 0:02:47]}  Nxe4 {[%clk 0:02:30]} 12. Bxe4 {[%clk 0:02:48]}  Bxe5 {[%clk 0:02:26]} 13. dxe5 {[%clk 0:02:49]}  Nd7 {[%clk 0:02:27]} 14. Bc3 {[%clk 0:02:36]}  Nc5 {[%clk 0:02:22]} 15. Bc2 {[%clk 0:02:32]}  Qg5 {[%clk 0:01:53]} 16. h4 {[%clk 0:02:26]}  Qe7 {[%clk 0:01:43]} 17. b4 {[%clk 0:02:13]}  Rad8 {[%clk 0:01:41]} 18. Qb1 {[%clk 0:02:09]}  Nd7 {[%clk 0:01:36]} 19. Bxh7+ {[%clk 0:02:08]}  Kh8 {[%clk 0:01:36]} 20. Be4 {[%clk 0:02:07]}  Nb8 {[%clk 0:01:30]} 21. Rd1 {[%clk 0:01:36]}  c5 {[%clk 0:01:30]} 22. Bxb7 {[%clk 0:01:22]}  Qxb7 {[%clk 0:01:29]} 23. bxc5 {[%clk 0:01:11]}  Qf3 {[%clk 0:01:28]} 24. Qc2 {[%clk 0:00:45]}  Nc6 {[%clk 0:01:23]} 25. Rd6 {[%clk 0:00:44]}  bxc5 {[%clk 0:01:17]} 26. Rad1 {[%clk 0:00:42]}  Rxd6 {[%clk 0:00:44]} 27. exd6 {[%clk 0:00:43]}  e5 {[%clk 0:00:44]} 28. Rd5 {[%clk 0:00:36]}  Nd4 {[%clk 0:00:42]} 29. Bxd4 {[%clk 0:00:36]}  exd4 {[%clk 0:00:41]} 30. d7 {[%clk 0:00:36]}  Rd8 {[%clk 0:00:35]} 31. Re5 {[%clk 0:00:32]}  d3 {[%clk 0:00:31]} 32. Qd2 {[%clk 0:00:20]}  Rxd7 {[%clk 0:00:31]} 33. Re3 {[%clk 0:00:18]}  Qf5 {[%clk 0:00:31]} 34. Kg2 {[%clk 0:00:16]}  Qg4 {[%clk 0:00:24]} 35. Kg1 {[%clk 0:00:12]}  Qxc4 {[%clk 0:00:24]} 36. Re8+ {[%clk 0:00:11]}  Kh7 {[%clk 0:00:25]} 37. Qg5 {[%clk 0:00:11]}  Qd5 {[%clk 0:00:20]} 38. Qd2 {[%clk 0:00:08]}  c4 {[%clk 0:00:20]} 39. Re1 {[%clk 0:00:07]}  Qf5 {[%clk 0:00:18]} 40. Rc1 {[%clk 0:00:07]}  Qe4 {[%clk 0:00:18]} 41. Re1 {[%clk 0:00:07]}  Qd4 {[%clk 0:00:18]} 42. Rc1 {[%clk 0:00:07]}  Re7 {[%clk 0:00:18]} 43. Rd1 {[%clk 0:00:05]}  c3 {[%clk 0:00:14]} 44. Qxd3+ {[%clk 0:00:05]}  Qxd3 {[%clk 0:00:14]} 45. Rxd3 {[%clk 0:00:06]}  Re1+ {[%clk 0:00:15]} 46. Kg2 {[%clk 0:00:05]}  c2 {[%clk 0:00:16]} 0-1


[Site "https://www.chess.com"]

[Event "Titled Tuesday Blitz October 31 Early 2023"]
[White "Pinero Rodriguez, Carlos Jose"]
[Black "Mahdavi, Reza"]
[WhiteFideId "3901726"]
[BlackFideId "12595926"]
[WhiteElo "2489"]
[BlackElo "2921"]
[Result "1-0"]
[Round "1"]
[TimeControl "180+1"]
[Date "2023.10.31"]
[WhiteClock "0:00:12"]
[BlackClock "0:00:03"]
[Board "26"]

1. e4 {[%clk 0:02:21]}  c5 {[%clk 0:02:59]} 2. Nf3 {[%clk 0:02:20]}  d6 {[%clk 0:03:00]} 3. d4 {[%clk 0:02:20]}  cxd4 {[%clk 0:03:01]} 4. Nxd4 {[%clk 0:02:21]}  Nf6 {[%clk 0:03:02]} 5. Nc3 {[%clk 0:02:21]}  a6 {[%clk 0:03:03]} 6. Bg5 {[%clk 0:02:22]}  Nbd7 {[%clk 0:02:56]} 7. f4 {[%clk 0:02:21]}  e6 {[%clk 0:02:52]} 8. Qe2 {[%clk 0:02:21]}  Qc7 {[%clk 0:02:52]} 9. O-O-O {[%clk 0:02:21]}  b5 {[%clk 0:02:52]} 10. g4 {[%clk 0:02:19]}  h6 {[%clk 0:02:47]} 11. Bh4 {[%clk 0:02:18]}  b4 {[%clk 0:02:41]} 12. Nd5 {[%clk 0:02:18]}  Qc5 {[%clk 0:02:20]} 13. Nb3 {[%clk 0:02:11]}  Qa7 {[%clk 0:02:10]} 14. Nxb4 {[%clk 0:02:06]}  Bb7 {[%clk 0:02:06]} 15. Bg2 {[%clk 0:02:05]}  a5 {[%clk 0:02:05]} 16. Nd3 {[%clk 0:02:01]}  a4 {[%clk 0:02:05]} 17. Nd2 {[%clk 0:02:00]}  a3 {[%clk 0:02:05]} 18. b3 {[%clk 0:02:00]}  Qd4 {[%clk 0:02:03]} 19. Bf2 {[%clk 0:01:59]}  Qa1+ {[%clk 0:01:59]} 20. Nb1 {[%clk 0:01:59]}  Ba6 {[%clk 0:01:57]} 21. c4 {[%clk 0:01:55]}  Rc8 {[%clk 0:01:50]} 22. Nb4 {[%clk 0:01:52]}  Bb7 {[%clk 0:01:43]} 23. Bd4 {[%clk 0:01:51]}  Qxd4 {[%clk 0:01:31]} 24. Rxd4 {[%clk 0:01:51]}  d5 {[%clk 0:01:32]} 25. exd5 {[%clk 0:01:48]}  Bxb4 {[%clk 0:01:31]} 26. dxe6 {[%clk 0:01:48]}  Nc5 {[%clk 0:01:28]} 27. Bxb7 {[%clk 0:01:46]}  Nxb7 {[%clk 0:01:28]} 28. g5 {[%clk 0:01:44]}  hxg5 {[%clk 0:01:25]} 29. fxg5 {[%clk 0:01:44]}  Nh5 {[%clk 0:01:22]} 30. exf7+ {[%clk 0:01:44]}  Kf8 {[%clk 0:01:21]} 31. g6 {[%clk 0:01:41]}  Nf6 {[%clk 0:01:18]} 32. Re1 {[%clk 0:01:37]}  Bxe1 {[%clk 0:01:08]} 33. Qxe1 {[%clk 0:01:38]}  Nc5 {[%clk 0:01:02]} 34. Qe5 {[%clk 0:01:32]}  Nb7 {[%clk 0:00:58]} 35. Nc3 {[%clk 0:01:25]}  Rh5 {[%clk 0:00:56]} 36. Qf4 {[%clk 0:01:22]}  Rh6 {[%clk 0:00:49]} 37. Qg3 {[%clk 0:01:12]}  Rh5 {[%clk 0:00:44]} 38. Rh4 {[%clk 0:01:05]}  Rxh4 {[%clk 0:00:38]} 39. Qxh4 {[%clk 0:01:06]}  Ke7 {[%clk 0:00:36]} 40. Qe1+ {[%clk 0:01:00]}  Kf8 {[%clk 0:00:35]} 41. Qe5 {[%clk 0:00:59]}  Rd8 {[%clk 0:00:33]} 42. Nd5 {[%clk 0:00:54]}  Nxd5 {[%clk 0:00:31]} 43. cxd5 {[%clk 0:00:55]}  Nc5 {[%clk 0:00:26]} 44. Kd2 {[%clk 0:00:49]}  Nb7 {[%clk 0:00:06]} 45. Qc7 {[%clk 0:00:39]}  Rxd5+ {[%clk 0:00:06]} 46. Ke3 {[%clk 0:00:36]}  Nd8 {[%clk 0:00:07]} 47. b4 {[%clk 0:00:28]}  Ne6 {[%clk 0:00:05]} 48. Qb8+ {[%clk 0:00:27]}  Rd8 {[%clk 0:00:04]} 49. Qb5 {[%clk 0:00:25]}  Ke7 {[%clk 0:00:04]} 50. Qe5 {[%clk 0:00:22]}  Rc8 {[%clk 0:00:03]} 51. b5 {[%clk 0:00:22]}  Rf8 {[%clk 0:00:01]} 52. b6 {[%clk 0:00:21]}  Kd7 {[%clk 0:00:02]} 53. Qd5+ {[%clk 0:00:20]}  Ke7 {[%clk 0:00:02]} 54. Qb7+ {[%clk 0:00:13]}  Kf6 {[%clk 0:00:02]} 55. Qa7 {[%clk 0:00:14]}  Kxg6 {[%clk 0:00:02]} 56. b7 {[%clk 0:00:14]}  Nc7 {[%clk 0:00:01]} 57. b8=Q {[%clk 0:00:13]}  Nd5+ {[%clk 0:00:02]} 58. Kd4 {[%clk 0:00:13]}  Rxb8 {[%clk 0:00:02]} 59. Qxb8 {[%clk 0:00:13]}  Ne7 {[%clk 0:00:02]} 60. f8=Q {[%clk 0:00:12]}  Nc6+ {[%clk 0:00:03]} 1-0


[Site "https://www.chess.com"]

[Event "Titled Tuesday Blitz October 31 Early 2023"]
[White "Erdogmus, Yagiz Kaan"]
[Black "Arutla, Aditya"]
[WhiteFideId "44599790"]
[BlackFideId "30961998"]
[WhiteElo "2915"]
[BlackElo "2489"]
[Result "0-1"]
[Round "1"]
[TimeControl "180+1"]
[Date "2023.10.31"]
[WhiteClock "0:00:20"]
[BlackClock "0:00:21"]
[Board "27"]

1. e4 {[%clk 0:03:00]}  c5 {[%clk 0:02:56]} 2. Nf3 {[%clk 0:03:00]}  Nc6 {[%clk 0:02:56]} 3. d4 {[%clk 0:02:58]}  cxd4 {[%clk 0:02:56]} 4. Nxd4 {[%clk 0:02:59]}  Nf6 {[%clk 0:02:54]} 5. Nc3 {[%clk 0:03:00]}  e5 {[%clk 0:02:55]} 6. Ndb5 {[%clk 0:02:57]}  d6 {[%clk 0:02:55]} 7. Bg5 {[%clk 0:02:56]}  a6 {[%clk 0:02:52]} 8. Bxf6 {[%clk 0:02:56]}  gxf6 {[%clk 0:02:52]} 9. Na3 {[%clk 0:02:56]}  b5 {[%clk 0:02:53]} 10. Nd5 {[%clk 0:02:56]}  f5 {[%clk 0:02:42]} 11. c3 {[%clk 0:02:56]}  Bg7 {[%clk 0:02:38]} 12. exf5 {[%clk 0:02:11]}  Bxf5 {[%clk 0:02:37]} 13. Nc2 {[%clk 0:02:03]}  O-O {[%clk 0:02:31]} 14. a4 {[%clk 0:01:57]}  bxa4 {[%clk 0:02:11]} 15. Rxa4 {[%clk 0:01:56]}  a5 {[%clk 0:02:10]} 16. Bd3 {[%clk 0:01:45]}  Be6 {[%clk 0:01:45]} 17. Nce3 {[%clk 0:00:56]}  f5 {[%clk 0:01:38]} 18. Qh5 {[%clk 0:00:52]}  e4 {[%clk 0:01:24]} 19. Rxe4 {[%clk 0:00:49]}  fxe4 {[%clk 0:01:19]} 20. Bxe4 {[%clk 0:00:50]}  h6 {[%clk 0:01:13]} 21. Qg6 {[%clk 0:00:49]}  Ne5 {[%clk 0:01:09]} 22. Qxe6+ {[%clk 0:00:46]}  Kh8 {[%clk 0:01:09]} 23. O-O {[%clk 0:00:45]}  Ra7 {[%clk 0:00:52]} 24. f4 {[%clk 0:00:42]}  Qd7 {[%clk 0:00:44]} 25. Qxd7 {[%clk 0:00:40]}  Nxd7 {[%clk 0:00:45]} 26. Ne7 {[%clk 0:00:40]}  Re8 {[%clk 0:00:35]} 27. Ng6+ {[%clk 0:00:41]}  Kg8 {[%clk 0:00:33]} 28. Bd5+ {[%clk 0:00:31]}  Kh7 {[%clk 0:00:33]} 29. Nf5 {[%clk 0:00:31]}  Kxg6 {[%clk 0:00:31]} 30. Nxd6 {[%clk 0:00:32]}  Re2 {[%clk 0:00:29]} 31. Be4+ {[%clk 0:00:25]}  Kf6 {[%clk 0:00:26]} 32. b4 {[%clk 0:00:25]}  axb4 {[%clk 0:00:26]} 33. cxb4 {[%clk 0:00:26]}  Ke6 {[%clk 0:00:24]} 34. Bf3 {[%clk 0:00:27]}  Bd4+ {[%clk 0:00:23]} 35. Kh1 {[%clk 0:00:27]}  Rf2 {[%clk 0:00:23]} 36. Rd1 {[%clk 0:00:27]}  Ra1 {[%clk 0:00:22]} 37. Rxa1 {[%clk 0:00:27]}  Bxa1 {[%clk 0:00:23]} 38. h3 {[%clk 0:00:24]}  Kxd6 {[%clk 0:00:22]} 39. Kh2 {[%clk 0:00:24]}  Rxf3 {[%clk 0:00:23]} 40. gxf3 {[%clk 0:00:24]}  Ke6 {[%clk 0:00:23]} 41. Kg3 {[%clk 0:00:25]}  Kf5 {[%clk 0:00:23]} 42. b5 {[%clk 0:00:24]}  Bd4 {[%clk 0:00:22]} 43. Kh4 {[%clk 0:00:22]}  Nf6 {[%clk 0:00:23]} 44. Kg3 {[%clk 0:00:22]}  Bb6 {[%clk 0:00:22]} 45. Kh4 {[%clk 0:00:23]}  Bc5 {[%clk 0:00:21]} 46. Kg3 {[%clk 0:00:24]}  Nh5+ {[%clk 0:00:20]} 47. Kh4 {[%clk 0:00:24]}  Nxf4 {[%clk 0:00:20]} 48. Kg3 {[%clk 0:00:25]}  Ng6 {[%clk 0:00:20]} 49. f4 {[%clk 0:00:23]}  Nxf4 {[%clk 0:00:20]} 50. Kh4 {[%clk 0:00:24]}  Be7+ {[%clk 0:00:20]} 51. Kg3 {[%clk 0:00:24]}  h5 {[%clk 0:00:20]} 52. b6 {[%clk 0:00:23]}  h4+ {[%clk 0:00:21]} 53. Kf3 {[%clk 0:00:23]}  Nxh3 {[%clk 0:00:21]} 54. b7 {[%clk 0:00:24]}  Bd6 {[%clk 0:00:21]} 55. Kg2 {[%clk 0:00:25]}  Ng5 {[%clk 0:00:22]} 56. Kh1 {[%clk 0:00:25]}  Kg4 {[%clk 0:00:22]} 57. Kg2 {[%clk 0:00:26]}  h3+ {[%clk 0:00:22]} 58. Kf1 {[%clk 0:00:27]}  Ne4 {[%clk 0:00:21]} 59. Kg1 {[%clk 0:00:28]}  Ng3 {[%clk 0:00:19]} 60. Kh2 {[%clk 0:00:23]}  Nf5+ {[%clk 0:00:20]} 61. Kh1 {[%clk 0:00:22]}  Ng7 {[%clk 0:00:19]} 62. Kg1 {[%clk 0:00:21]}  Ne6 {[%clk 0:00:19]} 63. Kh1 {[%clk 0:00:20]}  Nc5 {[%clk 0:00:20]} 64. Kg1 {[%clk 0:00:20]}  Nxb7 {[%clk 0:00:21]} 0-1


[Site "https://www.chess.com"]

[Event "Titled Tuesday Blitz October 31 Early 2023"]
[White "Kopczynski, Michal"]
[Black "Henriquez Villagra, Cristobal"]
[WhiteFideId "1124200"]
[BlackFideId "3409350"]
[WhiteElo "2477"]
[BlackElo "2902"]
[Result "0-1"]
[Round "1"]
[TimeControl "180+1"]
[Date "2023.10.31"]
[WhiteClock "0:00:08"]
[BlackClock "0:00:19"]
[Board "34"]

1. e4 {[%clk 0:03:00]}  d6 {[%clk 0:02:59]} 2. d4 {[%clk 0:03:00]}  Nf6 {[%clk 0:02:59]} 3. Nc3 {[%clk 0:03:01]}  e5 {[%clk 0:02:59]} 4. dxe5 {[%clk 0:02:59]}  dxe5 {[%clk 0:03:00]} 5. Qxd8+ {[%clk 0:02:59]}  Kxd8 {[%clk 0:03:01]} 6. Bg5 {[%clk 0:02:59]}  Be6 {[%clk 0:02:59]} 7. O-O-O+ {[%clk 0:03:00]}  Nd7 {[%clk 0:02:59]} 8. Nd5 {[%clk 0:02:59]}  Kc8 {[%clk 0:02:54]} 9. f3 {[%clk 0:02:50]}  c6 {[%clk 0:02:47]} 10. Nxf6 {[%clk 0:02:49]}  gxf6 {[%clk 0:02:47]} 11. Be3 {[%clk 0:02:48]}  f5 {[%clk 0:02:44]} 12. exf5 {[%clk 0:02:46]}  Bxf5 {[%clk 0:02:45]} 13. Bc4 {[%clk 0:02:46]}  Bg6 {[%clk 0:02:43]} 14. h4 {[%clk 0:02:44]}  h5 {[%clk 0:02:43]} 15. Ne2 {[%clk 0:02:43]}  Bc5 {[%clk 0:02:38]} 16. Bg5 {[%clk 0:02:30]}  Re8 {[%clk 0:02:02]} 17. Ng3 {[%clk 0:02:26]}  f6 {[%clk 0:01:55]} 18. Bh6 {[%clk 0:02:23]}  f5 {[%clk 0:01:54]} 19. Bd3 {[%clk 0:01:53]}  e4 {[%clk 0:01:53]} 20. fxe4 {[%clk 0:01:49]}  fxe4 {[%clk 0:01:53]} 21. Be2 {[%clk 0:01:39]}  Rh8 {[%clk 0:01:45]} 22. Bg7 {[%clk 0:01:28]}  Rh7 {[%clk 0:01:45]} 23. Bd4 {[%clk 0:01:24]}  Bd6 {[%clk 0:01:38]} 24. Rh3 {[%clk 0:01:04]}  Kc7 {[%clk 0:01:32]} 25. Be3 {[%clk 0:00:51]}  Rf8 {[%clk 0:01:29]} 26. c4 {[%clk 0:00:49]}  Bf4 {[%clk 0:01:24]} 27. Kd2 {[%clk 0:00:43]}  Be5 {[%clk 0:01:18]} 28. Kc2 {[%clk 0:00:41]}  Nf6 {[%clk 0:01:08]} 29. b4 {[%clk 0:00:38]}  Ng4 {[%clk 0:01:07]} 30. Bxa7 {[%clk 0:00:34]}  Ra8 {[%clk 0:01:06]} 31. Bd4 {[%clk 0:00:22]}  Bxd4 {[%clk 0:00:58]} 32. Rxd4 {[%clk 0:00:22]}  Rxa2+ {[%clk 0:00:59]} 33. Kb3 {[%clk 0:00:22]}  Ra1 {[%clk 0:00:50]} 34. Bxg4 {[%clk 0:00:21]}  hxg4 {[%clk 0:00:50]} 35. Rh2 {[%clk 0:00:21]}  Re7 {[%clk 0:00:44]} 36. h5 {[%clk 0:00:21]}  Bh7 {[%clk 0:00:44]} 37. h6 {[%clk 0:00:21]}  Rb1+ {[%clk 0:00:43]} 38. Kc3 {[%clk 0:00:21]}  e3 {[%clk 0:00:44]} 39. Ne2 {[%clk 0:00:21]}  Re1 {[%clk 0:00:43]} 40. g3 {[%clk 0:00:21]}  Rf7 {[%clk 0:00:40]} 41. Rf4 {[%clk 0:00:19]}  Rd7 {[%clk 0:00:32]} 42. Rd4 {[%clk 0:00:20]}  Re7 {[%clk 0:00:32]} 43. Rxg4 {[%clk 0:00:19]}  Rd1 {[%clk 0:00:23]} 44. Rg7 {[%clk 0:00:18]}  Rd3+ {[%clk 0:00:24]} 45. Kb2 {[%clk 0:00:18]}  Rd2+ {[%clk 0:00:24]} 46. Kc1 {[%clk 0:00:17]}  Red7 {[%clk 0:00:23]} 47. Rxd7+ {[%clk 0:00:16]}  Kxd7 {[%clk 0:00:24]} 48. g4 {[%clk 0:00:13]}  Rc2+ {[%clk 0:00:23]} 49. Kd1 {[%clk 0:00:13]}  Rxc4 {[%clk 0:00:23]} 50. g5 {[%clk 0:00:12]}  Rg4 {[%clk 0:00:24]} 51. Rh3 {[%clk 0:00:11]}  Rxg5 {[%clk 0:00:23]} 52. Rxe3 {[%clk 0:00:11]}  Rh5 {[%clk 0:00:24]} 53. Rg3 {[%clk 0:00:10]}  Rxh6 {[%clk 0:00:23]} 54. Rg7+ {[%clk 0:00:10]}  Kc8 {[%clk 0:00:24]} 55. Kd2 {[%clk 0:00:09]}  Rh4 {[%clk 0:00:20]} 56. Kc3 {[%clk 0:00:08]}  Be4 {[%clk 0:00:21]} 57. Nd4 {[%clk 0:00:08]}  Bd5 {[%clk 0:00:21]} 58. Nf5 {[%clk 0:00:07]}  Rc4+ {[%clk 0:00:21]} 59. Kd3 {[%clk 0:00:07]}  Rxb4 {[%clk 0:00:21]} 60. Ne7+ {[%clk 0:00:06]}  Kb8 {[%clk 0:00:20]} 61. Nxd5 {[%clk 0:00:06]}  cxd5 {[%clk 0:00:21]} 62. Rd7 {[%clk 0:00:06]}  d4 {[%clk 0:00:20]} 63. Rxd4 {[%clk 0:00:06]}  Rxd4+ {[%clk 0:00:20]} 64. Kxd4 {[%clk 0:00:07]}  Ka7 {[%clk 0:00:21]} 65. Kc5 {[%clk 0:00:07]}  Ka6 {[%clk 0:00:22]} 66. Kc4 {[%clk 0:00:08]}  Ka5 {[%clk 0:00:22]} 67. Kb3 {[%clk 0:00:07]}  Kb5 {[%clk 0:00:22]} 68. Kc3 {[%clk 0:00:07]}  Ka4 {[%clk 0:00:23]} 69. Kb2 {[%clk 0:00:07]}  Kb4 {[%clk 0:00:23]} 70. Kc2 {[%clk 0:00:07]}  Ka3 {[%clk 0:00:24]} 71. Kb1 {[%clk 0:00:07]}  Kb3 {[%clk 0:00:21]} 72. Kc1 {[%clk 0:00:07]}  Ka2 {[%clk 0:00:20]} 73. Kc2 {[%clk 0:00:08]}  b5 {[%clk 0:00:19]} 74. Kc3 {[%clk 0:00:09]}  Ka3 {[%clk 0:00:20]} 75. Kc2 {[%clk 0:00:09]}  b4 {[%clk 0:00:18]} 76. Kb1 {[%clk 0:00:10]}  Kb3 {[%clk 0:00:19]} 77. Kc1 {[%clk 0:00:08]}  Ka2 {[%clk 0:00:19]} 0-1


[Site "https://www.chess.com"]